[Event "45th FIDE Womens Olympiad 2024"]
[Site "Budapest"]
[Date "2024.09.14"]
[Round "4.19"]
[White "Krush, Irina"]
[Black "Bensdorp-De Labaca, Marlies"]
[Result "1-0"]
[ECO "D35"]
[WhiteElo "2396"]
[BlackElo "2241"]
[Annotator "ChessBase"]
[PlyCount "81"]
[EventDate "2024.09.05"]
[EventType "team-tourn"]
[EventCountry "HUN"]
[SourceTitle "playchess.com"]
[Source "ChessBase"]
[SourceQuality "1"]
[WhiteTeam "United States of America"]
[BlackTeam "Netherlands"]
[WhiteTeamCountry "USA"]
[BlackTeamCountry "NED"]
[TimeControl "40/5400+30:1800+30"]

1. c4 {[%emt 0:00:06]} e6 {[%emt 0:00:03]} 2. Nc3 {[%emt 0:00:36]} d5 {[%emt 0:00:03]} 3. d4 {[%emt 0:00:15]} Nf6 {[%emt 0:00:04]} 4. cxd5 {[%emt 0:00:35]} exd5 {[%emt 0:00:07]} 5. Bg5 {[%emt 0:00:11]} Be7 {[%emt 0:00:11]} 6. e3 {[%emt 0:00:10]} O-O {[%emt 0:00:20]} 7. Bd3 {[%emt 0:00:34]} Re8 {[%emt 0:00:17]} 8. Nge2 {[%emt 0:03:49]} h6 {[%emt 0:04:04]} 9. Bh4 {[%emt 0:01:00]} c6 {[%emt 0:01:25]} 10. O-O {[%emt 0:02:33]} a5 {[%emt 0:02:48]} 11. Qc2 {[%emt 0:06:17]} Na6 {[%emt 0:00:21]} 12. a3 {[%emt 0:00:26]} Nc7 {[%emt 0:00:40]} 13. Rad1 {[%emt 0:07:31]} Ne6 {[%emt 0:06:16]} 14. f3 {[%emt 0:04:13]} b5 {[%emt 0:03:39]} 15. Kh1 {[%emt 0:07:36]} Ba6 {[%emt 0:06:05]} 16. Bf2 {[%emt 0:14:10]} Qb8 {[%emt 0:21:06]} 17. Ng3 {[%emt 0:11:44]} b4 {[%emt 0:12:54]} 18. Nce2 {[%emt 0:00:22]} Bxd3 {[%emt 0:05:44]} 19. Rxd3 {[%emt 0:06:16]} c5 {[%emt 0:01:16]} 20. dxc5 {[%emt 0:01:21]} Nxc5 {[%emt 0:00:09]} 21. Rdd1 {[%emt 0:00:12]} bxa3 {[%emt 0:02:11]} 22. bxa3 {[%emt 0:00:03]} Qb3 {[%emt 0:04:23]} 23. Qxb3 {[%emt 0:00:31]} Nxb3 {[%emt 0:00:05]} 24. a4 {[%emt 0:00:11]} Bb4 {[%emt 0:00:49]} 25. Nf4 {[%emt 0:04:16]} Bd2 {[%emt 0:02:42]} 26. Nf5 {[%emt 0:02:51]} Rab8 {[%emt 0:04:21]} 27. Bh4 {[%emt 0:13:30]} Rb6 {[%emt 0:12:09]} 28. Be1 {[%emt 0:02:06]} Bxe1 {[%emt 0:01:45]} 29. Rfxe1 {[%emt 0:00:01]} Rb4 {[%emt 0:00:55]} 30. Nxd5 {[%emt 0:04:31]} Nxd5 {[%emt 0:00:04]} 31. Rxd5 {[%emt 0:00:06]} Rxa4 {[%emt 0:00:17]} 32. h4 {[%emt 0:02:26]} h5 {[%emt 0:03:40]} 33. Rd7 {[%emt 0:03:26]} Ra2 {[%emt 0:03:25]} 34. Red1 {[%emt 0:00:49]} a4 {[%emt 0:00:37]} 35. Ra7 {[%emt 0:00:30]} Nc5 {[%emt 0:01:04]} 36. Rd5 {[%emt 0:01:54]} Rc2 {[%emt 0:01:11]} 37. Kh2 {[%emt 0:00:04]} Ne6 {[%emt 0:01:05]} 38. Ne7+ {[%emt 0:01:34]} Kf8 {[%emt 0:00:28]} 39. Rxh5 {[%emt 0:00:01]} Rc7 {[%emt 0:00:22]} 40. Nd5 {[%emt 0:00:40]} f6 {[%emt 0:00:53]} 41. Nxc7 {[%emt 0:30:32]} 1-0

[Event "45th FIDE Womens Olympiad 2024"]
[Site "Budapest"]
[Date "2024.09.14"]
[Round "4.19"]
[White "Joshi, Aditi Narayan"]
[Black "Denning, Julie L"]
[Result "1-0"]
[ECO "D52"]
[WhiteElo "1546"]
[BlackElo "1741"]
[PlyCount "71"]
[EventDate "2024.09.05"]
[EventType "team-tourn"]
[EventCountry "HUN"]
[WhiteTeam "Guyana"]
[BlackTeam "Guernsey"]
[WhiteTeamCountry "GUY"]
[BlackTeamCountry "GCI"]
[TimeControl "40/5400+30:1800+30"]

1. d4 d5 2. c4 e6 3. Nf3 Nf6 4. Bg5 Nbd7 5. e3 c6 6. Nc3 Qa5 7. Nd2 Bb4 8. Qc2 dxc4 9. Bxf6 Nxf6 10. Bxc4 O-O 11. O-O Qh5 12. Nde4 Qg6 13. Nxf6+ Qxf6 14. Bd3 Qh6 15. e4 Rd8 16. Ne2 Ba5 17. Rad1 Bc7 18. f4 Bd6 19. Rf3 Be7 20. Rh3 Bh4 21. g3 e5 22. Rxh4 Qf6 23. dxe5 Qe7 24. Bc4 Re8 25. Nd4 g6 26. Nf3 Kg7 27. Ng5 Qc5+ 28. Kg2 h5 29. Qc3 Bg4 30. Rd6 Re7 31. Rxg4 hxg4 32. Bxf7 Qxc3 33. Rxg6+ Kh8 34. bxc3 Rf8 35. Rh6+ Kg7 36. Rh7# 1-0

[Event "45th FIDE Womens Olympiad 2024"]
[Site "Budapest"]
[Date "2024.09.14"]
[Round "4.20"]
[White "Kazarian, Anna-Maja"]
[Black "Lee, Alice"]
[Result "0-1"]
[ECO "B30"]
[WhiteElo "2180"]
[BlackElo "2384"]
[Annotator "ChessBase"]
[PlyCount "64"]
[EventDate "2024.09.05"]
[EventType "team-tourn"]
[EventCountry "HUN"]
[SourceTitle "playchess.com"]
[Source "ChessBase"]
[SourceQuality "1"]
[WhiteTeam "Netherlands"]
[BlackTeam "United States of America"]
[WhiteTeamCountry "NED"]
[TimeControl "40/5400+30:1800+30"]

1. e4 {[%emt 0:00:02]} c5 {[%emt 0:00:19]} 2. Nf3 {[%emt 0:00:10]} Nc6 {[%emt 0:00:34]} 3. Bb5 {[%emt 0:00:06]} e6 {[%emt 0:00:34]} 4. Bxc6 {[%emt 0:00:39]} bxc6 {[%emt 0:00:13]} 5. O-O {[%emt 0:02:15]} Ne7 {[%emt 0:01:48]} 6. b3 {[%emt 0:00:52]} Ng6 {[%emt 0:01:50]} 7. Bb2 {[%emt 0:00:43]} f6 {[%emt 0:01:57]} 8. e5 {[%emt 0:19:58]} Be7 {[%emt 0:04:03]} 9. Re1 {[%emt 0:08:29]} O-O {[%emt 0:02:37]} 10. d3 {[%emt 0:06:55]} Qe8 {[%emt 0:04:16]} 11. Nbd2 {[%emt 0:02:49]} fxe5 {[%emt 0:03:41]} 12. Nxe5 {[%emt 0:00:29]} d6 {[%emt 0:05:27]} 13. Nec4 {[%emt 0:11:22]} e5 {[%emt 0:03:58]} 14. Ne4 {[%emt 0:03:49]} Nh4 {[%emt 0:09:59]} 15. Ng3 {[%emt 0:05:30]} Qf7 {[%emt 0:02:41]} 16. Qe2 {[%emt 0:04:10]} Bg4 {[%emt 0:03:58]} 17. f3 {[%emt 0:00:50]} Be6 {[%emt 0:03:41]} 18. Nd2 {[%emt 0:07:24]} Ng6 {[%emt 0:01:51]} 19. Qe4 {[%emt 0:03:44]} Bg5 {[%emt 0:03:46]} 20. Ndf1 {[%emt 0:01:54]} Nf4 {[%emt 0:02:30]} 21. Ne3 {[%emt 0:06:23]} Bd5 {[%emt 0:02:36]} 22. Qf5 {[%emt 0:08:47]} Qe7 {[%emt 0:00:49]} 23. Qg4 {[%emt 0:01:42]} Be6 {[%emt 0:05:03]} 24. Nef5 {[%emt 0:00:09]} Qd8 {[%emt 0:00:50]} 25. h4 {[%emt 0:01:55]} Bf6 {[%emt 0:01:00]} 26. h5 {[%emt 0:01:46]} Kh8 {[%emt 0:01:33]} 27. Bc1 {[%emt 0:00:10]} Qd7 {[%emt 0:01:24]} 28. Rb1 {[%emt 0:00:55]} Nd5 {[%emt 0:00:34]} 29. f4 {[%emt 0:00:29]} exf4 {[%emt 0:00:34]} 30. Bxf4 {[%emt 0:00:31]} Nxf4 {[%emt 0:00:21]} 31. Qxf4 {[%emt 0:00:24]} Bxf5 {[%emt 0:00:08]} 32. Nxf5 {[%emt 0:00:35]} Bd4+ {[%emt 0:00:43]} 0-1

[Event "45th FIDE Womens Olympiad 2024"]
[Site "Budapest"]
[Date "2024.09.14"]
[Round "4.21"]
[White "Khademalsharieh, Sarasadat"]
[Black "Munkhzul, Turmunkh"]
[Result "1/2-1/2"]
[ECO "D36"]
[WhiteElo "2468"]
[BlackElo "2256"]
[Annotator "ChessBase"]
[PlyCount "51"]
[EventDate "2024.09.05"]
[EventType "team-tourn"]
[EventCountry "HUN"]
[SourceTitle "playchess.com"]
[Source "ChessBase"]
[SourceQuality "1"]
[WhiteTeam "Spain"]
[BlackTeam "Mongolia"]
[WhiteTeamCountry "ESP"]
[BlackTeamCountry "MGL"]
[TimeControl "40/5400+30:1800+30"]

1. d4 {[%emt 0:00:10]} Nf6 {[%emt 0:00:11]} 2. c4 {[%emt 0:00:10]} e6 {[%emt 0:00:16]} 3. Nf3 {[%emt 0:00:25]} d5 {[%emt 0:00:21]} 4. cxd5 {[%emt 0:00:21]} exd5 {[%emt 0:00:08]} 5. Nc3 {[%emt 0:00:07]} c6 {[%emt 0:00:38]} 6. Qc2 {[%emt 0:00:20]} Be7 {[%emt 0:00:27]} 7. Bg5 {[%emt 0:00:26]} g6 {[%emt 0:00:37]} 8. e3 {[%emt 0:00:22]} Bf5 {[%emt 0:00:16]} 9. Bd3 {[%emt 0:00:09]} Bxd3 {[%emt 0:00:12]} 10. Qxd3 {[%emt 0:00:05]} O-O {[%emt 0:00:31]} 11. Bxf6 {[%emt 0:00:21]} Bxf6 {[%emt 0:00:06]} 12. h4 {[%emt 0:00:09]} Nd7 {[%emt 0:02:55]} 13. h5 {[%emt 0:01:48]} Re8 {[%emt 0:01:56]} 14. Kf1 {[%emt 0:01:01]} Bg7 {[%emt 0:03:22]} 15. g3 {[%emt 0:05:54]} Qe7 {[%emt 0:06:32]} 16. Kg2 {[%emt 0:00:54]} Rad8 {[%emt 0:05:52]} 17. Rh4 {[%emt 0:07:31]} g5 {[%emt 0:01:19]} 18. Rhh1 {[%emt 0:00:46]} h6 {[%emt 0:00:23]} 19. Rab1 {[%emt 0:08:42]} Qe6 {[%emt 0:05:47]} 20. Rbe1 {[%emt 0:18:37]} f5 {[%emt 0:04:03]} 21. Qc2 {[%emt 0:03:59]} Nb6 {[%emt 0:05:28]} 22. b3 {[%emt 0:08:06]} Qf7 {[%emt 0:03:37]} 23. Ne2 {[%emt 0:00:58]} Qe6 {[%emt 0:02:07]} 24. Nc3 {[%emt 0:02:20]} Qf7 {[%emt 0:00:31]} 25. Ne2 {[%emt 0:00:21]} Qe6 {[%emt 0:06:39]} 26. Nc3 {[%emt 0:01:19]} 1/2-1/2

[Event "45th FIDE Womens Olympiad 2024"]
[Site "Budapest"]
[Date "2024.09.14"]
[Round "4.21"]
[White "Kaslan, Victoria"]
[Black "Ahmed, Najla"]
[Result "1-0"]
[ECO "B15"]
[WhiteElo "1726"]
[BlackElo "1539"]
[PlyCount "61"]
[EventDate "2024.09.05"]
[EventType "team-tourn"]
[EventCountry "HUN"]
[WhiteTeam "Suriname"]
[BlackTeam "Bahrain"]
[WhiteTeamCountry "SUR"]
[BlackTeamCountry "BRN"]
[TimeControl "40/5400+30:1800+30"]

1. e4 c6 2. d4 d5 3. Nd2 dxe4 4. Nxe4 Nf6 5. Nxf6+ exf6 6. c3 Bd6 7. Bd3 O-O 8. Ne2 Na6 9. Qc2 h6 10. Be3 Nc7 11. c4 Bb4+ 12. Nc3 Re8 13. O-O Bf8 14. Rad1 Na6 15. a3 Bd7 16. d5 Qc7 17. b4 Nb8 18. c5 Bg4 19. Rd2 Nd7 20. d6 Qd8 21. h3 Be6 22. Rdd1 g6 23. Bxg6 fxg6 24. Qxg6+ Kh8 25. Qh5 Bg7 26. Bxh6 Bxh6 27. Qxh6+ Kg8 28. Rd3 Kf7 29. Qh7+ Kf8 30. Rg3 Re7 31. Qh8+ 1-0

[Event "45th FIDE Womens Olympiad 2024"]
[Site "Budapest"]
[Date "2024.09.14"]
[Round "4.22"]
[White "Munguntuul, Batkhuyag"]
[Black "Garcia Martin, Marta"]
[Result "1-0"]
[ECO "C84"]
[WhiteElo "2346"]
[BlackElo "2318"]
[Annotator "ChessBase"]
[PlyCount "73"]
[EventDate "2024.09.05"]
[EventType "team-tourn"]
[EventCountry "HUN"]
[SourceTitle "playchess.com"]
[Source "ChessBase"]
[SourceQuality "1"]
[WhiteTeam "Mongolia"]
[BlackTeam "Spain"]
[WhiteTeamCountry "MGL"]
[BlackTeamCountry "ESP"]
[TimeControl "40/5400+30:1800+30"]

1. e4 {[%emt 0:00:01]} e5 {[%emt 0:00:13]} 2. Nf3 {[%emt 0:00:04]} Nc6 {[%emt 0:00:06]} 3. Bb5 {[%emt 0:00:04]} a6 {[%emt 0:00:06]} 4. Ba4 {[%emt 0:00:05]} Nf6 {[%emt 0:00:13]} 5. O-O {[%emt 0:00:06]} Nxe4 {[%emt 0:00:19]} 6. d4 {[%emt 0:01:14]} Be7 {[%emt 0:00:15]} 7. Re1 {[%emt 0:18:39]} b5 {[%emt 0:00:33]} 8. Rxe4 {[%emt 0:04:21]} d5 {[%emt 0:00:24]} 9. Nxe5 {[%emt 0:02:53]} Nxe5 {[%emt 0:00:07]} 10. Rxe5 {[%emt 0:05:51]} bxa4 {[%emt 0:00:13]} 11. Nc3 {[%emt 0:05:05]} O-O {[%emt 0:00:28]} 12. Qh5 {[%emt 0:15:42]} Bd6 {[%emt 0:22:39]} 13. Re2 {[%emt 0:04:34]} a3 {[%emt 0:18:03]} 14. Nxd5 {[%emt 0:06:53]} axb2 {[%emt 0:01:30]} 15. Bxb2 {[%emt 0:00:06]} Rb8 {[%emt 0:00:58]} 16. c4 {[%emt 0:03:21]} Be6 {[%emt 0:08:10]} 17. Ne3 {[%emt 0:04:09]} Qf6 {[%emt 0:03:02]} 18. Nd5 {[%emt 0:07:59]} Qd8 {[%emt 0:19:22]} 19. Rd1 {[%emt 0:01:59]} Qd7 {[%emt 0:06:26]} 20. Ne3 {[%emt 0:00:59]} Bf4 {[%emt 0:00:13]} 21. Rdd2 {[%emt 0:09:24]} Bxe3 {[%emt 0:04:37]} 22. Rxe3 {[%emt 0:00:05]} Bxc4 {[%emt 0:00:04]} 23. d5 {[%emt 0:00:59]} Rfe8 {[%emt 0:01:41]} 24. h3 {[%emt 0:04:03]} Rxe3 {[%emt 0:01:28]} 25. fxe3 {[%emt 0:00:02]} f6 {[%emt 0:00:23]} 26. e4 {[%emt 0:01:53]} Qe7 {[%emt 0:10:50]} 27. Qh4 {[%emt 0:02:13]} Qb4 {[%emt 0:00:38]} 28. Qf4 {[%emt 0:00:54]} Re8 {[%emt 0:00:45]} 29. e5 {[%emt 0:00:23]} fxe5 {[%emt 0:00:20]} 30. Bxe5 {[%emt 0:00:02]} Qc5+ {[%emt 0:00:50]} 31. Kh2 {[%emt 0:00:42]} Bb5 {[%emt 0:00:32]} 32. Bxc7 {[%emt 0:00:29]} Bd7 {[%emt 0:00:28]} 33. Be5 {[%emt 0:00:20]} Qe7 {[%emt 0:00:17]} 34. Bd4 {[%emt 0:00:15]} h6 {[%emt 0:00:44]} 35. Rd3 {[%emt 0:00:45]} Qf7 {[%emt 0:00:29]} 36. Qd6 {[%emt 0:00:27]} Re2 {[%emt 0:00:32]} 37. Rg3 {[%emt 0:00:12]} 1-0

[Event "45th FIDE Womens Olympiad 2024"]
[Site "Budapest"]
[Date "2024.09.14"]
[Round "4.22"]
[White "Almusawi, Maram"]
[Black "Kaslan, Alexandra"]
[Result "0-1"]
[ECO "E20"]
[WhiteElo "1510"]
[BlackElo "1675"]
[PlyCount "132"]
[EventDate "2024.09.05"]
[EventType "team-tourn"]
[EventCountry "HUN"]
[WhiteTeam "Bahrain"]
[BlackTeam "Suriname"]
[WhiteTeamCountry "BRN"]
[BlackTeamCountry "SUR"]
[TimeControl "40/5400+30:1800+30"]

1. d4 Nf6 2. c4 e6 3. Nc3 Bb4 4. Bd2 b6 5. f3 Nh5 6. Nh3 Qh4+ 7. Nf2 Qxd4 8. e3 Qh4 9. Bd3 Qd8 10. O-O O-O 11. Qc2 f5 12. a3 Bd6 13. Nb5 Be7 14. e4 a6 15. Nc3 g6 16. exf5 exf5 17. Nd5 d6 18. Nxe7+ Qxe7 19. Rfe1 Qd7 20. Re2 Re8 21. Rxe8+ Qxe8 22. Re1 Qd7 23. b4 Nc6 24. c5 d5 25. Nh3 Bb7 26. cxb6 cxb6 27. Qb3 Rd8 28. Bg5 Rc8 29. Qb2 Re8 30. Rd1 Ne5 31. Bf1 Qf7 32. b5 a5 33. Qb3 Qe6 34. Nf4 Nxf4 35. Bxf4 Nd7 36. Bg3 Qe3+ 37. Qxe3 Rxe3 38. Rd3 Rxd3 39. Bxd3 Kf7 40. Kf2 Ke6 41. Bc7 d4 42. Ke2 Kd5 43. Kd2 Kc5 44. Kc2 Bd5 45. Be2 Nf8 46. g3 Ne6 47. Be5 Ng5 48. Bf6 Bxf3 49. Bd3 Ne6 50. Kb3 Bd1+ 51. Kb2 Ba4 52. Be7+ Kd5 53. Kc1 Nc5 54. Be2 Ne6 55. Kb2 g5 56. Bd3 f4 57. gxf4 gxf4 58. Bxh7 Bxb5 59. Bc2 Be2 60. Kc1 f3 61. Bh4 Kc4 62. Kd2 Nf4 63. Bg3 Nh5 64. Bf2 b5 65. h4 b4 66. axb4 axb4 {0-} 0-1

[Event "45th FIDE Womens Olympiad 2024"]
[Site "Budapest"]
[Date "2024.09.14"]
[Round "4.23"]
[White "Vega Gutierrez, Sabrina"]
[Black "Nomin-Erdene, Davaademberel"]
[Result "1-0"]
[ECO "B45"]
[WhiteElo "2374"]
[BlackElo "2319"]
[Annotator "ChessBase"]
[PlyCount "75"]
[EventDate "2024.09.05"]
[EventType "team-tourn"]
[EventCountry "HUN"]
[SourceTitle "playchess.com"]
[Source "ChessBase"]
[SourceQuality "1"]
[WhiteTeam "Spain"]
[BlackTeam "Mongolia"]
[WhiteTeamCountry "ESP"]
[BlackTeamCountry "MGL"]
[TimeControl "40/5400+30:1800+30"]

1. e4 {[%emt 0:00:05]} c5 {[%emt 0:00:07]} 2. Nf3 {[%emt 0:00:10]} Nc6 {[%emt 0:00:07]} 3. d4 {[%emt 0:00:13]} cxd4 {[%emt 0:00:06]} 4. Nxd4 {[%emt 0:00:06]} Nf6 {[%emt 0:00:26]} 5. Nc3 {[%emt 0:00:09]} e6 {[%emt 0:00:08]} 6. Nxc6 {[%emt 0:11:08]} bxc6 {[%emt 0:00:55]} 7. e5 {[%emt 0:00:06]} Nd5 {[%emt 0:00:05]} 8. Ne4 {[%emt 0:00:08]} Bb7 {[%emt 0:00:07]} 9. Be2 {[%emt 0:06:14]} c5 {[%emt 0:00:27]} 10. O-O {[%emt 0:02:06]} Qc7 {[%emt 0:00:21]} 11. Nd6+ {[%emt 0:03:34]} Bxd6 {[%emt 0:00:07]} 12. exd6 {[%emt 0:00:04]} Qc6 {[%emt 0:00:23]} 13. f3 {[%emt 0:01:07]} e5 {[%emt 0:00:11]} 14. c4 {[%emt 0:08:55]} Nf4 {[%emt 0:00:21]} 15. Bxf4 {[%emt 0:05:02]} exf4 {[%emt 0:00:07]} 16. Bd3 {[%emt 0:00:12]} O-O {[%emt 0:04:44]} 17. Bc2 {[%emt 0:19:21]} Rae8 {[%emt 0:10:43]} 18. Qd3 {[%emt 0:02:03]} g6 {[%emt 0:00:20]} 19. Rfe1 {[%emt 0:00:23]} Rxe1+ {[%emt 0:27:07]} 20. Rxe1 {[%emt 0:00:04]} Qb6 {[%emt 0:00:04]} 21. Qd2 {[%emt 0:02:10]} Bc6 {[%emt 0:17:07]} 22. Be4 {[%emt 0:01:25]} Rc8 {[%emt 0:13:49]} 23. Bxc6 {[%emt 0:08:53]} Qxc6 {[%emt 0:08:46]} 24. Re7 {[%emt 0:02:46]} Rf8 {[%emt 0:02:17]} 25. h4 {[%emt 0:02:29]} h5 {[%emt 0:01:35]} 26. b3 {[%emt 0:00:57]} a5 {[%emt 0:00:58]} 27. Qxf4 {[%emt 0:02:36]} a4 {[%emt 0:00:03]} 28. Kh2 {[%emt 0:02:41]} axb3 {[%emt 0:02:18]} 29. axb3 {[%emt 0:00:03]} Qb7 {[%emt 0:00:58]} 30. Qe3 {[%emt 0:01:01]} Qc6 {[%emt 0:01:47]} 31. Qe5 {[%emt 0:00:17]} Rb8 {[%emt 0:08:41]} 32. Kg3 {[%emt 0:04:35]} Ra8 {[%emt 0:00:42]} 33. Qf6 {[%emt 0:01:39]} Rf8 {[%emt 0:00:30]} 34. Kf4 {[%emt 0:00:14]} Kh7 {[%emt 0:00:32]} 35. Kg5 {[%emt 0:00:42]} Qa8 {[%emt 0:00:29]} 36. Rxf7+ {[%emt 0:02:12]} Rxf7 {[%emt 0:00:03]} 37. Qxf7+ {[%emt 0:00:07]} Kh8 {[%emt 0:00:01]} 38. Kh6 {[%emt 0:00:26]} 1-0

[Event "45th FIDE Womens Olympiad 2024"]
[Site "Budapest"]
[Date "2024.09.14"]
[Round "4.23"]
[White "Wu, Elise"]
[Black "Sharaf, Hawra"]
[Result "1-0"]
[ECO "B13"]
[WhiteElo "1595"]
[BlackElo "1595"]
[PlyCount "71"]
[EventDate "2024.09.05"]
[EventType "team-tourn"]
[EventCountry "HUN"]
[WhiteTeam "Suriname"]
[BlackTeam "Bahrain"]
[WhiteTeamCountry "SUR"]
[BlackTeamCountry "BRN"]
[TimeControl "40/5400+30:1800+30"]

1. e4 c6 2. d4 d5 3. exd5 cxd5 4. Nf3 Nf6 5. Bd3 Bg4 6. h3 Bd7 7. O-O Nc6 8. c3 g6 9. Bf4 Bg7 10. Nbd2 O-O 11. Re1 Re8 12. Ne5 e6 13. Ndf3 Ne7 14. Qb3 Bc6 15. Ng5 Rf8 16. Qa3 Nh5 17. Bh2 Nf5 18. Ngxf7 Rxf7 19. Nxf7 Kxf7 20. g4 Nh4 21. gxh5 Qg5+ 22. Bg3 Nf3+ 23. Kh1 Qxh5 24. Kg2 Nxe1+ 25. Rxe1 Rf8 26. Be2 Qg5 27. Bg4 Kg8 28. Bxe6+ Kh8 29. h4 Qf6 30. Bg4 h5 31. Re6 Qf7 32. Re7 Qf6 33. Bh3 Qf3+ 34. Kh2 Bf6 35. Re3 Qd1 36. Qxf8+ 1-0

[Event "45th FIDE Womens Olympiad 2024"]
[Site "Budapest"]
[Date "2024.09.14"]
[Round "4.24"]
[White "Mungunzul, Bat-Erdene"]
[Black "Matnadze Bujiashvili, Ann"]
[Result "1-0"]
[ECO "E90"]
[WhiteElo "2224"]
[BlackElo "2338"]
[Annotator "ChessBase"]
[PlyCount "79"]
[EventDate "2024.09.05"]
[EventType "team-tourn"]
[EventCountry "HUN"]
[SourceTitle "playchess.com"]
[Source "ChessBase"]
[SourceQuality "1"]
[WhiteTeam "Mongolia"]
[BlackTeam "Spain"]
[WhiteTeamCountry "MGL"]
[BlackTeamCountry "ESP"]
[TimeControl "40/5400+30:1800+30"]

1. d4 {[%emt 0:00:04]} d6 {[%emt 0:00:05]} 2. Nf3 {[%emt 0:02:04]} Nf6 {[%emt 0:00:14]} 3. c4 {[%emt 0:00:16]} g6 {[%emt 0:00:26]} 4. Nc3 {[%emt 0:00:23]} Bg7 {[%emt 0:00:13]} 5. e4 {[%emt 0:00:17]} Bg4 {[%emt 0:00:41]} 6. Be2 {[%emt 0:00:36]} Bxf3 {[%emt 0:01:19]} 7. Bxf3 {[%emt 0:00:16]} e5 {[%emt 0:00:09]} 8. d5 {[%emt 0:02:53]} h5 {[%emt 0:01:57]} 9. h3 {[%emt 0:11:49]} Nbd7 {[%emt 0:02:13]} 10. Be3 {[%emt 0:05:00]} Bh6 {[%emt 0:01:29]} 11. Bxh6 {[%emt 0:01:51]} Rxh6 {[%emt 0:00:03]} 12. b4 {[%emt 0:02:30]} Kf8 {[%emt 0:01:29]} 13. a3 {[%emt 0:09:44]} Kg7 {[%emt 0:00:41]} 14. Qd2 {[%emt 0:00:46]} Nh7 {[%emt 0:09:28]} 15. Qe3 {[%emt 0:03:54]} f5 {[%emt 0:06:25]} 16. O-O-O {[%emt 0:15:14]} h4 {[%emt 0:15:55]} 17. Kb2 {[%emt 0:02:17]} a5 {[%emt 0:06:10]} 18. Be2 {[%emt 0:03:42]} Ng5 {[%emt 0:12:11]} 19. f3 {[%emt 0:02:38]} Nf7 {[%emt 0:03:14]} 20. Bd3 {[%emt 0:02:59]} Rh5 {[%emt 0:01:56]} 21. Bc2 {[%emt 0:03:04]} Rg5 {[%emt 0:00:54]} 22. Qf2 {[%emt 0:01:08]} Qb8 {[%emt 0:01:12]} 23. exf5 {[%emt 0:09:58]} gxf5 {[%emt 0:00:08]} 24. Qxh4 {[%emt 0:00:20]} axb4 {[%emt 0:00:42]} 25. axb4 {[%emt 0:00:24]} Qa7 {[%emt 0:00:17]} 26. Ra1 {[%emt 0:00:46]} Qb6 {[%emt 0:00:17]} 27. c5 {[%emt 0:02:18]} dxc5 {[%emt 0:04:49]} 28. Rxa8 {[%emt 0:00:16]} cxb4 {[%emt 0:00:06]} 29. Na4 {[%emt 0:01:31]} Qb5 {[%emt 0:02:12]} 30. Qf2 {[%emt 0:02:03]} Nd6 {[%emt 0:00:51]} 31. Bb3 {[%emt 0:01:15]} f4 {[%emt 0:02:24]} 32. Rc1 {[%emt 0:01:31]} Nf5 {[%emt 0:01:34]} 33. Bc4 {[%emt 0:00:30]} Qxa4 {[%emt 0:00:25]} 34. Rxa4 {[%emt 0:00:13]} Ne3 {[%emt 0:00:04]} 35. Bf1 {[%emt 0:00:08]} Nb6 {[%emt 0:00:14]} 36. Rxb4 {[%emt 0:00:17]} Nbxd5 {[%emt 0:00:23]} 37. Rxb7 {[%emt 0:00:13]} Rg6 {[%emt 0:00:17]} 38. Qh4 {[%emt 0:00:40]} Kg8 {[%emt 0:03:12]} 39. Qd8+ {[%emt 0:00:32]} Kg7 {[%emt 0:00:13]} 40. Rcxc7+ {[%emt 0:00:07]} 1-0

[Event "45th FIDE Womens Olympiad 2024"]
[Site "Budapest"]
[Date "2024.09.14"]
[Round "4.24"]
[White "Yaqoob, Wafa"]
[Black "Tjong Tjin Joe, Maylee"]
[Result "0-1"]
[ECO "C54"]
[WhiteElo "1438"]
[BlackElo "1665"]
[PlyCount "76"]
[EventDate "2024.09.05"]
[EventType "team-tourn"]
[EventCountry "HUN"]
[WhiteTeam "Bahrain"]
[BlackTeam "Suriname"]
[WhiteTeamCountry "BRN"]
[TimeControl "40/5400+30:1800+30"]

1. e4 e5 2. Nf3 Nc6 3. Bc4 Bc5 4. c3 Nf6 5. d3 h6 6. Nbd2 O-O 7. O-O a6 8. Bb3 b5 9. h3 d5 10. Re1 Re8 11. Qc2 Ba7 12. Nf1 dxe4 13. dxe4 Na5 14. Ng3 Nxb3 15. Qxb3 c5 16. Nh4 c4 17. Qc2 Nh5 18. Nhf5 Nxg3 19. Nxg3 Qh4 20. Nf5 Bxf5 21. exf5 Rad8 22. Be3 Bxe3 23. Rxe3 e4 24. Rae1 Rd3 25. a4 Qf4 26. axb5 axb5 27. f6 gxf6 28. Qc1 Kh7 29. Qa1 Rd2 30. R3e2 Red8 31. Rxd2 Rxd2 32. Qa7 Kg7 33. Qe3 Qxe3 34. Rxe3 Rxb2 35. Rxe4 Rb1+ 36. Kh2 Rb3 37. Re3 b4 38. Re4 Rxc3 {0-} 0-1